[Event "*** Titled Tuesday Blitz"]
[Site "Chess.com"]
[Date "2019.07.02"]
[Round "5"]
[White "Ali_rastbod"]
[Black "G_Threepwood"]
[Result "0-1"]
[WhiteElo "2733"]
[BlackElo "2487"]
[TimeControl "180+2"]
[EndTime "14:11:01 PDT"]
[Termination "G_Threepwood won by resignation"]

1. c4 {[%clk 0:02:59.8]} 1... Nf6 {[%clk 0:02:59]} 2. Nc3 {[%clk 0:03:00.5]}
2... c5 {[%clk 0:02:59.2]} 3. Nf3 {[%clk 0:02:55.1]} 3... Nc6 {[%clk 0:02:59.8]}
4. e3 {[%clk 0:02:49.2]} 4... d5 {[%clk 0:02:58.8]} 5. cxd5 {[%clk 0:02:47.9]}
5... Nxd5 {[%clk 0:03:00.7]} 6. Bb5 {[%clk 0:02:47.7]} 6... e6 {[%clk
0:02:49.8]} 7. O-O {[%clk 0:02:45.5]} 7... Be7 {[%clk 0:02:50.6]} 8. Ne5 {[%clk
0:02:40.1]} 8... Qc7 {[%clk 0:02:07]} 9. Nxc6 {[%clk 0:02:40.1]} 9... bxc6
{[%clk 0:02:07.4]} 10. Bc4 {[%clk 0:02:35.9]} 10... O-O {[%clk 0:02:06.5]} 11.
Ne4 {[%clk 0:01:38]} 11... Rd8 {[%clk 0:02:04.7]} 12. a3 {[%clk 0:01:23.1]}
12... Rb8 {[%clk 0:02:00.5]} 13. Qc2 {[%clk 0:01:23.4]} 13... Qe5 {[%clk
0:01:47.6]} 14. Bd3 {[%clk 0:01:16.8]} 14... f5 {[%clk 0:01:09]} 15. f4 {[%clk
0:01:11.6]} 15... Qc7 {[%clk 0:01:09.1]} 16. Nxc5 {[%clk 0:01:09.5]} 16... Nxe3
{[%clk 0:00:53.8]} 17. dxe3 {[%clk 0:01:02]} 17... Bxc5 {[%clk 0:00:54.9]} 18.
Qc4 {[%clk 0:00:36.4]} 18... Rd5 {[%clk 0:00:30]} 19. b4 {[%clk 0:00:37.4]}
19... Be7 {[%clk 0:00:14.9]} 20. Be2 {[%clk 0:00:38.2]} 20... Bf6 {[%clk
0:00:15.3]} 21. Ra2 {[%clk 0:00:38.5]} 21... Qd6 {[%clk 0:00:16]} 22. Rc2 {[%clk
0:00:38.1]} 22... Bb7 {[%clk 0:00:15.9]} 23. Bf3 {[%clk 0:00:38.8]} 23... Rd3
{[%clk 0:00:16.9]} 24. e4 {[%clk 0:00:35.9]} 24... Qd4+ {[%clk 0:00:15.5]} 25.
Qxd4 {[%clk 0:00:36.9]} 25... Bxd4+ {[%clk 0:00:17.4]} 26. Kh1 {[%clk
0:00:37.6]} 26... c5 {[%clk 0:00:15.6]} 27. bxc5 {[%clk 0:00:31.7]} 27... Bxe4
{[%clk 0:00:15.8]} 28. Bxe4 {[%clk 0:00:25.3]} 28... fxe4 {[%clk 0:00:17.7]} 29.
Re1 {[%clk 0:00:21.7]} 29... e3 {[%clk 0:00:18.5]} 30. g3 {[%clk 0:00:23.1]}
30... Rc8 {[%clk 0:00:19.4]} 31. c6 {[%clk 0:00:24.4]} 31... Kf7 {[%clk
0:00:19.7]} 32. Kg2 {[%clk 0:00:25.4]} 32... Ke7 {[%clk 0:00:15.8]} 33. Kf3
{[%clk 0:00:26.8]} 33... Kd6 {[%clk 0:00:16.6]} 34. Bxe3 {[%clk 0:00:28]} 34...
Bxe3 {[%clk 0:00:09.4]} 35. Rxe3 {[%clk 0:00:29.9]} 35... Rxe3+ {[%clk
0:00:11.3]} 36. Kxe3 {[%clk 0:00:31.8]} 36... Rxc6 {[%clk 0:00:13.1]} 37. Rxc6+
{[%clk 0:00:23.9]} 37... Kxc6 {[%clk 0:00:15]} 38. Ke4 {[%clk 0:00:22.6]} 38...
Kd6 {[%clk 0:00:16.4]} 39. Kd4 {[%clk 0:00:24]} 39... Kc6 {[%clk 0:00:11.2]} 40.
Ke5 {[%clk 0:00:24.9]} 40... Kd7 {[%clk 0:00:12.7]} 41. g4 {[%clk 0:00:24.9]}
41... Ke7 {[%clk 0:00:12.7]} 42. h4 {[%clk 0:00:25.8]} 42... g6 {[%clk
0:00:11.9]} 43. g5 {[%clk 0:00:15.3]} 43... a6 {[%clk 0:00:12.9]} 44. a4 {[%clk
0:00:16.4]} 44... a5 {[%clk 0:00:13.5]} 45. Ke4 {[%clk 0:00:17.9]} 45... Kd7
{[%clk 0:00:14]} 46. Kd3 {[%clk 0:00:16.4]} 46... Kc7 {[%clk 0:00:11.2]} 47. Kc4
{[%clk 0:00:17.4]} 47... Kc6 {[%clk 0:00:12.1]} 48. Kd4 {[%clk 0:00:18.8]} 48...
Kd6 {[%clk 0:00:13.6]} 49. Ke4 {[%clk 0:00:20.4]} 49... Kd7 {[%clk 0:00:13.3]}
50. Ke3 {[%clk 0:00:14.2]} 50... Ke7 {[%clk 0:00:10]} 51. Kd3 {[%clk 0:00:12.7]}
51... Kd7 {[%clk 0:00:10.9]} 52. Kc3 {[%clk 0:00:13.2]} 52... Kc7 {[%clk
0:00:11.4]} 53. Kd2 {[%clk 0:00:12.7]} 53... Kd6 {[%clk 0:00:10.3]} 54. Kd3
{[%clk 0:00:11.2]} 54... Kd5 {[%clk 0:00:10.6]} 55. Ke3 {[%clk 0:00:12.5]} 55...
e5 {[%clk 0:00:12.1]} 56. fxe5 {[%clk 0:00:09]} 56... Kxe5 {[%clk 0:00:14]} 57.
Kf3 {[%clk 0:00:10.6]} 57... Kf5 {[%clk 0:00:14.6]} 58. Kg3 {[%clk 0:00:12.1]}
58... Ke4 {[%clk 0:00:15.7]} 59. Kg4 {[%clk 0:00:13.8]} 59... Ke3 {[%clk
0:00:13.1]} 60. Kg3 {[%clk 0:00:15.2]} 60... Ke4 {[%clk 0:00:14.2]} 61. Kg4
{[%clk 0:00:16.6]} 61... Ke5 {[%clk 0:00:08]} 62. Kg3 {[%clk 0:00:17.7]} 62...
Kd5 {[%clk 0:00:07.3]} 63. Kf4 {[%clk 0:00:18.8]} 63... Kd4 {[%clk 0:00:08.4]}
64. Kf3 {[%clk 0:00:20.3]} 64... Kc4 {[%clk 0:00:05.8]} 65. Ke4 {[%clk
0:00:21.6]} 65... Kb4 {[%clk 0:00:07.2]} 66. Ke5 {[%clk 0:00:23.5]} 66... Kxa4
{[%clk 0:00:08.7]} 67. Kf6 {[%clk 0:00:25.4]} 67... Kb5 {[%clk 0:00:10.1]} 68.
Kg7 {[%clk 0:00:27.3]} 68... a4 {[%clk 0:00:12]} 69. Kxh7 {[%clk 0:00:29.2]}
69... a3 {[%clk 0:00:13.9]} 70. Kxg6 {[%clk 0:00:31.1]} 70... a2 {[%clk
0:00:15.8]} 71. Kh7 {[%clk 0:00:19.6]} 71... a1=Q {[%clk 0:00:17.7]} 72. h5
{[%clk 0:00:18.4]} 72... Qe5 {[%clk 0:00:18.2]} 73. Kh6 {[%clk 0:00:14.7]} 73...
Qh8+ {[%clk 0:00:19.4]} 74. Kg6 {[%clk 0:00:15.9]} 74... Qg8+ {[%clk 0:00:15.9]}
75. Kh6 {[%clk 0:00:17]} 75... Kc6 {[%clk 0:00:17.4]} 76. g6 {[%clk 0:00:17.9]}
76... Kd6 {[%clk 0:00:15.1]} 77. g7 {[%clk 0:00:19]} 77... Ke6 {[%clk
0:00:09.9]} 78. Kg6 {[%clk 0:00:20.3]} 78... Qf7+ {[%clk 0:00:09.5]} 79. Kh6
{[%clk 0:00:18.8]} 79... Qg8 {[%clk 0:00:04.5]} 80. Kg6 {[%clk 0:00:19.9]} 80...
Ke7 {[%clk 0:00:06.1]} 81. Kh6 {[%clk 0:00:15.6]} 81... Kf7 {[%clk 0:00:04]} 0-1

[Event "*** Titled Tuesday Blitz"]
[Site "Chess.com"]
[Date "2019.07.02"]
[Round "5"]
[White "Alexander_Moskalenko"]
[Black "Oleksandr_Bortnyk"]
[Result "1-0"]
[WhiteElo "2867"]
[BlackElo "2937"]
[TimeControl "180+2"]
[EndTime "14:11:39 PDT"]
[Termination "Alexander_Moskalenko won by resignation"]

1. e4 {[%clk 0:03:01.9]} 1... g6 {[%clk 0:02:59.1]} 2. d4 {[%clk 0:03:01.5]}
2... Bg7 {[%clk 0:03:00.4]} 3. Nc3 {[%clk 0:03:03.4]} 3... d6 {[%clk 0:03:01.1]}
4. Be3 {[%clk 0:03:05.3]} 4... a6 {[%clk 0:03:02.2]} 5. Qd2 {[%clk 0:03:07.2]}
5... b5 {[%clk 0:03:02.2]} 6. O-O-O {[%clk 0:03:09.1]} 6... Nd7 {[%clk 0:03:02]}
7. f3 {[%clk 0:03:11]} 7... Bb7 {[%clk 0:03:01.5]} 8. h4 {[%clk 0:03:12.6]} 8...
h5 {[%clk 0:03:02.6]} 9. Nh3 {[%clk 0:03:13.3]} 9... e6 {[%clk 0:03:04.1]} 10.
Ng5 {[%clk 0:03:13.1]} 10... Ne7 {[%clk 0:03:04.9]} 11. Ne2 {[%clk 0:03:10.4]}
11... Nb6 {[%clk 0:03:00.9]} 12. Nf4 {[%clk 0:03:09.4]} 12... Qd7 {[%clk
0:02:58.6]} 13. g4 {[%clk 0:02:52.6]} 13... hxg4 {[%clk 0:02:35.6]} 14. fxg4
{[%clk 0:02:54.5]} 14... Bf6 {[%clk 0:02:37.1]} 15. Bd3 {[%clk 0:02:48.9]} 15...
Bxg5 {[%clk 0:02:32.5]} 16. hxg5 {[%clk 0:02:50.8]} 16... O-O-O {[%clk
0:02:32.3]} 17. Rh6 {[%clk 0:02:40.7]} 17... Kb8 {[%clk 0:02:29]} 18. Rf1 {[%clk
0:02:30.2]} 18... e5 {[%clk 0:02:05.7]} 19. Ne2 {[%clk 0:02:21.3]} 19... Nec8
{[%clk 0:01:54.7]} 20. dxe5 {[%clk 0:02:02.9]} 20... dxe5 {[%clk 0:01:54.1]} 21.
Qc3 {[%clk 0:01:54.6]} 21... Rhf8 {[%clk 0:01:37.2]} 22. Rh7 {[%clk 0:01:47.7]}
22... Nd6 {[%clk 0:01:14.6]} 23. Bxb6 {[%clk 0:01:42.5]} 23... cxb6 {[%clk
0:01:16.5]} 24. Qxe5 {[%clk 0:01:43.3]} 24... Ka8 {[%clk 0:01:07.9]} 25. Qf4
{[%clk 0:01:19]} 25... Nc4 {[%clk 0:00:27.8]} 26. Bxc4 {[%clk 0:01:10.3]} 26...
bxc4 {[%clk 0:00:29.7]} 27. Nc3 {[%clk 0:01:11.5]} 27... b5 {[%clk 0:00:30.6]}
28. a3 {[%clk 0:01:02.8]} 28... Qe7 {[%clk 0:00:30.3]} 29. Qf6 {[%clk
0:00:58.9]} 29... Rd7 {[%clk 0:00:24.8]} 30. e5 {[%clk 0:00:50.9]} 30... Re8
{[%clk 0:00:21.5]} 31. Re1 {[%clk 0:00:33.8]} 31... Qe6 {[%clk 0:00:22.8]} 32.
Rh8 {[%clk 0:00:26.5]} 32... Rxh8 {[%clk 0:00:22.6]} 33. Qxh8+ {[%clk
0:00:27.5]} 33... Ka7 {[%clk 0:00:24.5]} 34. Qh4 {[%clk 0:00:27]} 34... Qb6
{[%clk 0:00:24.7]} 35. Qg3 {[%clk 0:00:26.7]} 35... a5 {[%clk 0:00:25.6]} 36.
Qe3 {[%clk 0:00:25.9]} 36... Qxe3+ {[%clk 0:00:25.5]} 37. Rxe3 {[%clk
0:00:27.8]} 37... Kb6 {[%clk 0:00:27.2]} 38. Ne2 {[%clk 0:00:20.5]} 38... Kc5
{[%clk 0:00:24.3]} 39. c3 {[%clk 0:00:21.1]} 39... Bd5 {[%clk 0:00:21.7]} 40.
Nd4 {[%clk 0:00:22.1]} 40... Be6 {[%clk 0:00:23.6]} 41. Kd2 {[%clk 0:00:21.4]}
41... Bxg4 {[%clk 0:00:23.8]} 42. Re1 {[%clk 0:00:20.5]} 42... Re7 {[%clk
0:00:17.4]} 43. Re4 {[%clk 0:00:16.7]} 43... Bd7 {[%clk 0:00:17.8]} 44. Rf4
{[%clk 0:00:15.6]} 44... Kd5 {[%clk 0:00:14.8]} 45. Nf3 {[%clk 0:00:10.3]} 45...
Bf5 {[%clk 0:00:09.8]} 46. Rd4+ {[%clk 0:00:10.2]} 46... Kc5 {[%clk 0:00:11.3]}
47. Ke3 {[%clk 0:00:11.3]} 47... Be6 {[%clk 0:00:11.1]} 48. Kf4 {[%clk
0:00:09.5]} 48... Bd5 {[%clk 0:00:12.2]} 49. Nd2 {[%clk 0:00:10.5]} 49... b4
{[%clk 0:00:13.2]} 50. axb4+ {[%clk 0:00:11.3]} 50... axb4 {[%clk 0:00:14.8]}
51. Nf1 {[%clk 0:00:09.2]} 51... bxc3 {[%clk 0:00:13.9]} 52. bxc3 {[%clk
0:00:11.1]} 52... Ra7 {[%clk 0:00:14.8]} 53. Ne3 {[%clk 0:00:12.6]} 53... Be6
{[%clk 0:00:16.2]} 54. Rd2 {[%clk 0:00:05.9]} 54... Ra3 {[%clk 0:00:16.2]} 55.
Rc2 {[%clk 0:00:07.2]} 55... Ra1 {[%clk 0:00:17.3]} 56. Rb2 {[%clk 0:00:07.5]}
56... Rc1 {[%clk 0:00:18.3]} 57. Rc2 {[%clk 0:00:08.8]} 57... Rh1 {[%clk
0:00:18.8]} 58. Ra2 {[%clk 0:00:10]} 58... Rh4+ {[%clk 0:00:18.9]} 59. Kf3
{[%clk 0:00:11.4]} 59... Bd5+ {[%clk 0:00:13.2]} 60. Kg3 {[%clk 0:00:11.2]}
60... Re4 {[%clk 0:00:14]} 61. Ra5+ {[%clk 0:00:12.6]} 61... Kb6 {[%clk
0:00:14.5]} 62. Rxd5 {[%clk 0:00:06.9]} 62... Rxe3+ {[%clk 0:00:15.9]} 63. Kf2
{[%clk 0:00:07]} 63... Rxc3 {[%clk 0:00:17.8]} 64. Rd7 {[%clk 0:00:08.6]} 64...
Rd3 {[%clk 0:00:16.2]} 65. Rxf7 {[%clk 0:00:08.8]} 65... c3 {[%clk 0:00:16.8]}
66. Ke2 {[%clk 0:00:09.6]} 66... Rd5 {[%clk 0:00:17.9]} 67. e6 {[%clk
0:00:06.5]} 67... c2 {[%clk 0:00:13]} 68. Rf1 {[%clk 0:00:07.7]} 68... Rxg5
{[%clk 0:00:12]} 69. Kd2 {[%clk 0:00:08]} 69... Re5 {[%clk 0:00:12.6]} 70. Rf6
{[%clk 0:00:08.4]} 70... g5 {[%clk 0:00:10.9]} 71. e7+ {[%clk 0:00:08.9]} 71...
Kc5 {[%clk 0:00:12.8]} 72. Rf5 {[%clk 0:00:09.4]} 72... Rxf5 {[%clk 0:00:10.9]}
73. e8=Q {[%clk 0:00:10.7]} 73... Rf2+ {[%clk 0:00:10.6]} 74. Kc1 {[%clk
0:00:11.9]} 74... Kd4 {[%clk 0:00:12.1]} 75. Qe7 {[%clk 0:00:12.1]} 75... Rg2
{[%clk 0:00:07.9]} 76. Qb7 {[%clk 0:00:12.9]} 76... Rh2 {[%clk 0:00:07]} 77.
Qg7+ {[%clk 0:00:13.8]} 77... Ke4 {[%clk 0:00:07.3]} 78. Qxg5 {[%clk 0:00:14.5]}
78... Kf3 {[%clk 0:00:06.2]} 79. Qg6 {[%clk 0:00:13.6]} 79... Rg2 {[%clk
0:00:07]} 80. Qd3+ {[%clk 0:00:13.8]} 80... Kg4 {[%clk 0:00:07.1]} 81. Qe3
{[%clk 0:00:15.1]} 81... Rh2 {[%clk 0:00:07.4]} 82. Kb2 {[%clk 0:00:15.7]} 82...
Rg2 {[%clk 0:00:08.4]} 83. Qe6+ {[%clk 0:00:16.2]} 83... Kg3 {[%clk 0:00:09.4]}
84. Qh6 {[%clk 0:00:17.2]} 84... Kg4 {[%clk 0:00:09.8]} 85. Kc3 {[%clk
0:00:17.2]} 85... Rf2 {[%clk 0:00:09.4]} 86. Kd3 {[%clk 0:00:17.3]} 86... Kg3
{[%clk 0:00:08.7]} 87. Qg5+ {[%clk 0:00:15.4]} 87... Kf3 {[%clk 0:00:07.3]} 88.
Qc1 {[%clk 0:00:16.6]} 88... Kg2 {[%clk 0:00:07.5]} 89. Ke3 {[%clk 0:00:16.8]}
89... Rf3+ {[%clk 0:00:08.4]} 90. Ke4 {[%clk 0:00:18.1]} 90... Rf2 {[%clk
0:00:09.2]} 91. Qg5+ {[%clk 0:00:18.9]} 91... Kf1 {[%clk 0:00:10.1]} 92. Kd3
{[%clk 0:00:19]} 92... Rh2 {[%clk 0:00:03]} 93. Qc1+ {[%clk 0:00:18.2]} 93...
Kg2 {[%clk 0:00:04.5]} 94. Qxc2+ {[%clk 0:00:19.2]} 94... Kg3 {[%clk 0:00:06.4]}
95. Qc7+ {[%clk 0:00:20.2]} 95... Kh3 {[%clk 0:00:04.9]} 96. Ke3 {[%clk
0:00:21.3]} 96... Ra2 {[%clk 0:00:06.4]} 97. Qh7+ {[%clk 0:00:20.4]} 97... Kg2
{[%clk 0:00:07]} 98. Qg8+ {[%clk 0:00:22.3]} 98... Kh1 {[%clk 0:00:08.4]} 99.
Qxa2 {[%clk 0:00:23.7]} 1-0

[Event "*** Titled Tuesday Blitz"]
[Site "Chess.com"]
[Date "2019.07.02"]
[Round "5"]
[White "ahkashefi2800"]
[Black "Mazanchenko_Dmitry"]
[Result "1-0"]
[WhiteElo "2062"]
[BlackElo "2216"]
[TimeControl "180+2"]
[EndTime "14:11:56 PDT"]
[Termination "ahkashefi2800 won by checkmate"]

1. d4 {[%clk 0:02:46.5]} 1... g6 {[%clk 0:03:00.8]} 2. Nf3 {[%clk 0:02:46.1]}
2... Bg7 {[%clk 0:03:02]} 3. Bf4 {[%clk 0:02:47.1]} 3... d6 {[%clk 0:03:03.4]}
4. e3 {[%clk 0:02:48]} 4... Nc6 {[%clk 0:03:04.1]} 5. Be2 {[%clk 0:02:48.5]}
5... e5 {[%clk 0:03:04.5]} 6. dxe5 {[%clk 0:02:48.5]} 6... dxe5 {[%clk
0:03:06.4]} 7. Qxd8+ {[%clk 0:02:49.3]} 7... Kxd8 {[%clk 0:03:07.6]} 8. Bg3
{[%clk 0:02:49.3]} 8... e4 {[%clk 0:03:07.7]} 9. Nd4 {[%clk 0:02:49.6]} 9...
Nxd4 {[%clk 0:03:08.5]} 10. exd4 {[%clk 0:02:51.5]} 10... Bxd4 {[%clk
0:03:09.7]} 11. c3 {[%clk 0:02:51]} 11... Bg7 {[%clk 0:03:08.3]} 12. Nd2 {[%clk
0:02:51.4]} 12... f5 {[%clk 0:03:08.5]} 13. O-O-O {[%clk 0:02:52.2]} 13... Bd7
{[%clk 0:02:58.5]} 14. Nxe4 {[%clk 0:02:18.7]} 14... fxe4 {[%clk 0:02:50.2]} 15.
Bg4 {[%clk 0:02:18.5]} 15... Nf6 {[%clk 0:02:47.3]} 16. Bh4 {[%clk 0:02:10.3]}
16... Bh6+ {[%clk 0:02:42.3]} 17. Kb1 {[%clk 0:02:04.7]} 17... g5 {[%clk
0:02:43.6]} 18. Bxd7 {[%clk 0:01:32.3]} 18... Nxd7 {[%clk 0:02:45.5]} 19. Rd5
{[%clk 0:01:32.6]} 19... c6 {[%clk 0:01:55.4]} 20. Bxg5+ {[%clk 0:01:30.3]}
20... Kc7 {[%clk 0:01:51.7]} 21. Rxd7+ {[%clk 0:01:31]} 21... Kxd7 {[%clk
0:01:52.3]} 22. Bxh6 {[%clk 0:01:32.9]} 22... Ke6 {[%clk 0:01:51.5]} 23. Re1
{[%clk 0:01:31.6]} 23... Kf5 {[%clk 0:01:50]} 24. h3 {[%clk 0:01:31.9]} 24...
Rhe8 {[%clk 0:01:47.7]} 25. Be3 {[%clk 0:01:23.4]} 25... b6 {[%clk 0:01:42.7]}
26. Kc2 {[%clk 0:01:24]} 26... Rad8 {[%clk 0:01:42.9]} 27. a4 {[%clk 0:01:21.8]}
27... Rd7 {[%clk 0:01:41.3]} 28. Ra1 {[%clk 0:01:13.3]} 28... h5 {[%clk
0:01:28.9]} 29. a5 {[%clk 0:01:13.5]} 29... b5 {[%clk 0:01:30.3]} 30. a6 {[%clk
0:01:13.5]} 30... h4 {[%clk 0:01:31.6]} 31. Rf1 {[%clk 0:00:41.6]} 31... Rg8
{[%clk 0:01:30.5]} 32. g4+ {[%clk 0:00:41.2]} 32... hxg3 {[%clk 0:01:25.6]} 33.
fxg3+ {[%clk 0:00:42.5]} 33... Ke6 {[%clk 0:01:25.1]} 34. Bf4 {[%clk 0:00:17.2]}
34... Rf7 {[%clk 0:01:13.2]} 35. Re1 {[%clk 0:00:17.4]} 35... Kf5 {[%clk
0:01:05.7]} 36. Bd6 {[%clk 0:00:12.5]} 36... Re8 {[%clk 0:01:01.5]} 37. Bf4
{[%clk 0:00:11]} 37... c5 {[%clk 0:00:55.3]} 38. c4 {[%clk 0:00:08.7]} 38... b4
{[%clk 0:00:53]} 39. Kb3 {[%clk 0:00:07.5]} 39... Re6 {[%clk 0:00:52.2]} 40. Ra1
{[%clk 0:00:06.9]} 40... e3 {[%clk 0:00:47.6]} 41. Re1 {[%clk 0:00:07]} 41... e2
{[%clk 0:00:48.2]} 42. Kc2 {[%clk 0:00:05.2]} 42... Rd7 {[%clk 0:00:47.2]} 43.
Bd2 {[%clk 0:00:03.2]} 43... Rdd6 {[%clk 0:00:37.5]} 44. g4+ {[%clk 0:00:03.9]}
44... Kg6 {[%clk 0:00:36.5]} 45. h4 {[%clk 0:00:04.7]} 45... Rxa6 {[%clk
0:00:36.7]} 46. h5+ {[%clk 0:00:05.5]} 46... Kh7 {[%clk 0:00:35.4]} 47. g5
{[%clk 0:00:06.3]} 47... Rab6 {[%clk 0:00:18.4]} 48. g6+ {[%clk 0:00:06]} 48...
Kg7 {[%clk 0:00:19.7]} 49. Rg1 {[%clk 0:00:06.5]} 49... Rbd6 {[%clk 0:00:18.2]}
50. h6+ {[%clk 0:00:06.7]} 50... Kg8 {[%clk 0:00:17.2]} 51. g7 {[%clk
0:00:04.6]} 51... Rxh6 {[%clk 0:00:12.8]} 52. Bxh6 {[%clk 0:00:04.2]} 52... Rxh6
{[%clk 0:00:14.7]} 53. Kd2 {[%clk 0:00:04.2]} 53... Re6 {[%clk 0:00:15.7]} 54.
Ke1 {[%clk 0:00:03.7]} 54... Re7 {[%clk 0:00:16.2]} 55. Rg5 {[%clk 0:00:04.3]}
55... a5 {[%clk 0:00:14.7]} 56. Rxc5 {[%clk 0:00:04.3]} 56... a4 {[%clk
0:00:16]} 57. Rb5 {[%clk 0:00:03.1]} 57... a3 {[%clk 0:00:14.4]} 58. Rxb4 {[%clk
0:00:03.5]} 58... axb2 {[%clk 0:00:12.7]} 59. Rxb2 {[%clk 0:00:04.2]} 59... Kxg7
{[%clk 0:00:14.2]} 60. Rxe2 {[%clk 0:00:04.3]} 60... Rc7 {[%clk 0:00:15.9]} 61.
Re4 {[%clk 0:00:05.1]} 61... Kf6 {[%clk 0:00:17]} 62. Kd2 {[%clk 0:00:06.1]}
62... Kf5 {[%clk 0:00:17.8]} 63. Kd3 {[%clk 0:00:06.9]} 63... Ra7 {[%clk
0:00:18.5]} 64. Re8 {[%clk 0:00:05.8]} 64... Ra3+ {[%clk 0:00:19]} 65. Kd4
{[%clk 0:00:06.5]} 65... Kf6 {[%clk 0:00:20.4]} 66. c5 {[%clk 0:00:06.7]} 66...
Kf7 {[%clk 0:00:21.5]} 67. Re1 {[%clk 0:00:07.5]} 67... Ra4+ {[%clk 0:00:20.6]}
68. Kd5 {[%clk 0:00:08.3]} 68... Ra2 {[%clk 0:00:20.3]} 69. c6 {[%clk
0:00:06.8]} 69... Rd2+ {[%clk 0:00:19.6]} 70. Kc5 {[%clk 0:00:07.2]} 70... Rc2+
{[%clk 0:00:21]} 71. Kd6 {[%clk 0:00:08.1]} 71... Rd2+ {[%clk 0:00:21.7]} 72.
Kc7 {[%clk 0:00:08.1]} 72... Rd3 {[%clk 0:00:21.4]} 73. Kb8 {[%clk 0:00:07.8]}
73... Rb3+ {[%clk 0:00:21.8]} 74. Kc8 {[%clk 0:00:08.2]} 74... Rc3 {[%clk
0:00:21.1]} 75. c7 {[%clk 0:00:09.2]} 75... Rd3 {[%clk 0:00:22.5]} 76. Rb1
{[%clk 0:00:09.5]} 76... Ke7 {[%clk 0:00:23.3]} 77. Kb8 {[%clk 0:00:10.3]} 77...
Rc3 {[%clk 0:00:20]} 78. c8=Q {[%clk 0:00:09]} 78... Rxc8+ {[%clk 0:00:21]} 79.
Kxc8 {[%clk 0:00:10.9]} 79... Kd6 {[%clk 0:00:22.9]} 80. Rb6+ {[%clk 0:00:11.5]}
80... Kd5 {[%clk 0:00:24.8]} 81. Rh6 {[%clk 0:00:13.2]} 81... Ke5 {[%clk
0:00:25.8]} 82. Kd7 {[%clk 0:00:15.1]} 82... Kf5 {[%clk 0:00:27.1]} 83. Ra6
{[%clk 0:00:17]} 83... Ke5 {[%clk 0:00:29]} 84. Rb6 {[%clk 0:00:17.4]} 84... Kd4
{[%clk 0:00:29.9]} 85. Rb5 {[%clk 0:00:17.8]} 85... Kc4 {[%clk 0:00:31.2]} 86.
Rh5 {[%clk 0:00:17.8]} 86... Kd4 {[%clk 0:00:32]} 87. Ke6 {[%clk 0:00:17.5]}
87... Kc4 {[%clk 0:00:33]} 88. Kd6 {[%clk 0:00:17.9]} 88... Kb4 {[%clk
0:00:33.7]} 89. Rc5 {[%clk 0:00:17.7]} 89... Kb3 {[%clk 0:00:34.2]} 90. Kd5
{[%clk 0:00:18.3]} 90... Kb2 {[%clk 0:00:35.8]} 91. Kd4 {[%clk 0:00:18.9]} 91...
Kb3 {[%clk 0:00:36.5]} 92. Rc8 {[%clk 0:00:19.5]} 92... Kb2 {[%clk 0:00:36.7]}
93. Kd3 {[%clk 0:00:19.5]} 93... Kb3 {[%clk 0:00:33.7]} 94. Rb8+ {[%clk
0:00:20]} 94... Ka4 {[%clk 0:00:34.2]} 95. Kc3 {[%clk 0:00:20.7]} 95... Ka5
{[%clk 0:00:35.3]} 96. Rb1 {[%clk 0:00:20.4]} 96... Ka6 {[%clk 0:00:33.8]} 97.
Kc4 {[%clk 0:00:21.1]} 97... Ka5 {[%clk 0:00:34.3]} 98. Rb2 {[%clk 0:00:21.1]}
98... Ka6 {[%clk 0:00:34.9]} 99. Kc5 {[%clk 0:00:20.9]} 99... Ka7 {[%clk
0:00:33.7]} 100. Kc6 {[%clk 0:00:21.5]} 100... Ka8 {[%clk 0:00:34.4]} 101. Kc7
{[%clk 0:00:21.6]} 101... Ka7 {[%clk 0:00:35.9]} 102. Ra2# {[%clk 0:00:23.3]}
1-0